Workbook

Sheet Income Average
A2: Income Averaging Test - 2023
B4: INPUT # OF INCOME DESIGNATED UNITS | H4: % OF AMI | I4: AVERAGE
I5: AMGI | K5: Revenue
B6: Studio | C6: 1BR | D6: 2BR | E6: 3BR | F6: 4BR | G6: Total | K6: Studio | L6: 1BR | M6: 2BR | N6: 3BR | O6: 4BR | P6: Total | Q6: All at 60%
B7: 0 | C7: 0 | D7: 0 | E7: 0 | F7: 0 | G7: =SUM(B7:F7) -> 0 | H7: 0.2 | I7: =G7*H7 -> 0 | K7: =+C37*B7 -> 0 | L7: =+C38*C7 -> 0 | M7: =+C39*D7 -> 0 | N7: =+C40*E7 -> 0 | O7: =+C41*F7 -> 0 | P7: =SUM(K7:O7) -> 0
B8: 0 | C8: 0 | D8: 0 | E8: 0 | F8: 0 | G8: =SUM(B8:F8) -> 0 | H8: 0.3 | I8: 0 | K8: =+D37*B8 -> 0 | L8: =+D38*C8 -> 0 | M8: =+D39*D8 -> 0 | N8: =+D40*E8 -> 0 | O8: =+D41*F8 -> 0 | P8: =SUM(K8:O8) -> 0
B9: 0 | C9: 0 | D9: 0 | E9: 0 | F9: 0 | G9: =SUM(B9:F9) -> 0 | H9: 0.4 | I9: =G9*H9 -> 0 | K9: =+E37*B9 -> 0 | L9: =+E38*C9 -> 0 | M9: =+E39*D9 -> 0 | N9: =+E40*E9 -> 0 | O9: =+E41*F9 -> 0 | P9: 0
B10: 0 | C10: 0 | D10: 0 | E10: 0 | F10: 0 | G10: =SUM(B10:F10) -> 0 | H10: 0.5 | I10: 0 | K10: =+F37*B10 -> 0 | L10: =+F38*C10 -> 0 | M10: =+F39*D10 -> 0 | N10: =+F40*E10 -> 0 | O10: =+F41*F10 -> 0 | P10: 0
B11: 0 | C11: 0 | D11: 0 | E11: 0 | F11: 0 | G11: =SUM(B11:F11) -> 0 | H11: 0.6 | I11: 0 | K11: =+G37*B11 -> 0 | L11: =+G38*C11 -> 0 | M11: =+G39*D11 -> 0 | N11: =+G40*E11 -> 0 | O11: =+G41*F11 -> 0 | P11: 0 | Q11: =+B14*G37+C14*G38+D14*G39+E14*G40+F14*G41 -> 0
B12: 0 | C12: 0 | D12: 0 | E12: 0 | F12: 0 | G12: 0 | H12: 0.7 | I12: 0 | K12: =+B12*H37 -> 0 | L12: =+H38*C12 -> 0 | M12: =+H39*D12 -> 0 | N12: =+E12*H40 -> 0 | O12: =+F12*H41 -> 0 | P12: 0
B13: 0 | C13: 0 | D13: 0 | E13: 0 | G13: 0 | H13: 0.8 | I13: 0 | K13: =+I37*B13 -> 0 | L13: =+I38*C13 -> 0 | M13: =+I39*D13 -> 0 | N13: =+I40*E13 -> 0 | O13: =+I41*F13 -> 0 | P13: 0
B14: =SUM(B7:B13) -> 0 | C14: =SUM(C7:C13) -> 0 | D14: =SUM(D7:D13) -> 0 | E14: 0 | F14: 0 | G14: 0 | I14: =SUM(I7:I13)/G14 ->  | P14: =SUM(P7:P13) -> 0 | Q14: =SUM(Q7:Q13) -> 0 | R14: =+P14-Q14 -> 0
Q15: Annual | R15: =+R14*12 -> 0
B16: Bond Test
B17: 40/60 Test | C17: =+IF((SUM($G$7:$G$11)/$G$14)>=0.4,"Pass","Fail") -> 
B18: 20/50 Test | C18: =+IF(SUM($G$7:$G$10)/$G$14>=0.2,"Pass","Fail") -> 
A21: Determination of Income and Rent
E22: Select County
D23: County: | E23: Adams County, WA
D24: 4 Person @ VLI (50%) | E24: =VLOOKUP(E23,'County Selection'!A1:B59,2,FALSE) -> 41750
B26: Income | C26: 0.2 | D26: 0.3 | E26: 0.4 | F26: 0.5 | G26: 0.6 | H26: 0.7 | I26: 0.8 | J26: 1.4
B27: 1 Person | C27: =F27*$C$26*2 -> 11700 | D27: =F27*$D$26*2 -> 17550 | E27: =F27*$E$26*2 -> 23400 | F27: =+CEILING($E$24*K27,50) -> 29250 | G27: =F27*$G$26*2 -> 35100 | H27: =F27*$H$26*2 -> 40950 | I27: =F27*$I$26*2 -> 46800 | J27: =F27*$J$26*2 -> 81900 | K27: 0.7
B28: 2 Person | C28: 13360 | D28: 20040 | E28: 26720 | F28: 33400 | G28: 40080 | H28: 46760 | I28: 53440 | J28: 93520 | K28: 0.8
B29: 3 Person | C29: 15040 | D29: 22560 | E29: 30080 | F29: 37600 | G29: 45120 | H29: 52640 | I29: 60160 | J29: 105280 | K29: 0.9
B30: 4 Person | C30: 16700 | D30: 25050 | E30: 33400 | F30: 41750 | G30: 50100 | H30: 58450 | I30: 66800 | J30: 116900 | K30: 1
B31: 5 Person | C31: 18040 | D31: 27060 | E31: 36080 | F31: 45100 | G31: 54120 | H31: 63140 | I31: 72160 | J31: 126280 | K31: 1.08
B32: 6 Person | C32: 19380 | D32: 29070 | E32: 38760 | F32: 48450 | G32: 58140 | H32: 67830 | I32: 77520 | J32: 135660 | K32: 1.16
B33: 7 Person | C33: 20720 | D33: 31080 | E33: 41440 | F33: 51800 | G33: 62160 | H33: 72520 | I33: 82880 | J33: 145040 | K33: 1.24
B34: 8 Person | C34: 22060 | D34: 33090 | E34: 44120 | F34: 55150 | G34: 66180 | H34: 77210 | I34: 88240 | J34: 154420 | K34: 1.32
B36: Rent | C36: =C26 -> 0.2 | D36: 0.3 | E36: 0.4 | F36: 0.5 | G36: 0.6 | H36: 0.7 | I36: 0.8
B37: Efficiency | C37: =+ROUNDDOWN(C27*0.3/12,0) -> 292 | D37: 438 | E37: 585 | F37: 731 | G37: 877 | H37: 1023 | I37: 1170
B38: 1 Bedroom | C38: =+ROUNDDOWN(((C27+C28)/2)*0.3/12,0) -> 313 | D38: 469 | E38: 626 | F38: 783 | G38: 939 | H38: 1096 | I38: 1253
B39: 2 Bedroom | C39: =+ROUNDDOWN(C29*0.3/12,0) -> 376 | D39: 564 | E39: 752 | F39: 940 | G39: 1128 | H39: 1316 | I39: 1504
B40: 3 Bedroom | C40: =+ROUNDDOWN(((C30+C31)/2)*0.3/12,0) -> 434 | D40: 651 | E40: 868 | F40: 1085 | G40: 1302 | H40: 1519 | I40: 1737
B41: 4 Bedroom | C41: =+ROUNDDOWN(C32*0.3/12,0) -> 484 | D41: 726 | E41: 969 | F41: 1211 | G41: 1453 | H41: 1695 | I41: 1938
B42: 5 Bedroom | C42: =+ROUNDDOWN(((C33+C34)/2)*0.3/12,0) -> 534 | D42: 802 | E42: 1069 | F42: 1336 | G42: 1604 | H42: 1871 | I42: 2139
B44: Change in Rent (compared to 60%)
C45: =C36 -> 0.2 | D45: =D36 -> 0.3 | E45: 0.4 | F45: 0.5 | G45: 0.6 | H45: 0.7 | I45: 0.8
B46: =B37 -> Efficiency | C46: =C37-$G37 -> -585 | D46: -439 | E46: -292 | F46: -146 | H46: =H37-G37 -> 146 | I46: =I37-G37 -> 293
B47: 1 Bedroom | C47: -626 | D47: -470 | E47: -313 | F47: -156 | H47: 157 | I47: 314
B48: 2 Bedroom | C48: -752 | D48: -564 | E48: -376 | F48: -188 | H48: 188 | I48: 376
B49: 3 Bedroom | C49: -868 | D49: -651 | E49: -434 | F49: -217 | H49: 217 | I49: 435
B50: 4 Bedroom | C50: -969 | D50: -727 | E50: -484 | F50: -242 | H50: 242 | I50: 485
B51: 5 Bedroom | C51: -1070 | D51: -802 | E51: -535 | F51: -268 | H51: 267 | I51: 535

Sheet County Selection
A1: County_Name | B1: l50_4
A2: Adams County, WA | B2: 41750
A3: Asotin County, WA | B3: 42350
A4: Benton County, WA | B4: 46200
A5: Chelan County, WA | B5: 42150
A6: Clallam County, WA | B6: 41750
A7: Clark County, WA | B7: 56400
A8: Columbia County, WA | B8: 41750
A9: Cowlitz County, WA | B9: 42150
A10: Douglas County, WA | B10: 42150
A11: Ferry County, WA | B11: 41750
A12: Franklin County, WA | B12: 46200
A13: Garfield County, WA | B13: 41750
A14: Grant County, WA | B14: 42150
A15: Grays Harbor County, WA | B15: 41750
A16: Island County, WA | B16: 47200
A17: Jefferson County, WA | B17: 42150
A18: King County, WA | B18: 68500
A19: Kitsap County, WA | B19: 54450
A20: Kittitas County, WA | B20: 45000
A21: Klickitat County, WA | B21: 41750
A22: Lewis County, WA | B22: 41750
A23: Lincoln County, WA | B23: 41750
A24: Mason County, WA | B24: 41750
A25: Okanogan County, WA | B25: 41750
A26: Pacific County, WA | B26: 41750
A27: Pend Oreille County, WA | B27: 41750
A28: Pierce County, WA | B28: 53750
A29: San Juan County, WA | B29: 46150
A30: Skagit County, WA | B30: 45550
A31: Skamania County, WA | B31: 56400
A32: Snohomish County, WA | B32: 68500
A33: Spokane County, WA | B33: 44500
A34: Stevens County, WA | B34: 41750
A35: Thurston County, WA | B35: 51250
A36: Wahkiakum County, WA | B36: 41750
A37: Walla Walla County, WA | B37: 42650
A38: Whatcom County, WA | B38: 48000
A39: Whitman County, WA | B39: 42250
A40: Yakima County, WA | B40: 41750

Sheet Sheet1
A1: WA | B1: 5300199999 | C1: 53 | D1: 1 | E1: NCNTY53001N53001 | F1: Adams County, WA | G1: Adams County | H1: 32150
A2: WA | B2: 5300399999 | C2: 53 | D2: 3 | E2: METRO30300M30300 | F2: Lewiston, ID-WA MSA | G2: Asotin County | H2: 31550
A3: WA | B3: 5300599999 | C3: 53 | D3: 5 | E3: METRO28420M28420 | F3: Kennewick-Richland, WA MSA | G3: Benton County | H3: 39000
A4: WA | B4: 5300799999 | C4: 53 | D4: 7 | E4: METRO48300M48300 | F4: Wenatchee, WA MSA | G4: Chelan County | H4: 34200
A5: WA | B5: 5300999999 | C5: 53 | D5: 9 | E5: NCNTY53009N53009 | F5: Clallam County, WA | G5: Clallam County | H5: 33250
A6: WA | B6: 5301199999 | C6: 53 | D6: 11 | E6: METRO38900M38900 | F6: Portland-Vancouver-Hillsboro, OR-WA MSA | G6: Clark County | H6: 43950
A7: WA | B7: 5301399999 | C7: 53 | D7: 13 | E7: METRO47460N53013 | F7: Columbia County, WA HUD Metro FMR Area | G7: Columbia County | H7: 32150
A8: WA | B8: 5301599999 | C8: 53 | D8: 15 | E8: METRO31020M31020 | F8: Longview, WA MSA | G8: Cowlitz County | H8: 34150
A9: WA | B9: 5301799999 | C9: 53 | D9: 17 | E9: METRO48300M48300 | F9: Wenatchee, WA MSA | G9: Douglas County | H9: 34200
A10: WA | B10: 5301999999 | C10: 53 | D10: 19 | E10: NCNTY53019N53019 | F10: Ferry County, WA | G10: Ferry County | H10: 32150
A11: WA | B11: 5302199999 | C11: 53 | D11: 21 | E11: METRO28420M28420 | F11: Kennewick-Richland, WA MSA | G11: Franklin County | H11: 39000
A12: WA | B12: 5302399999 | C12: 53 | D12: 23 | E12: NCNTY53023N53023 | F12: Garfield County, WA | G12: Garfield County | H12: 32150
A13: WA | B13: 5302599999 | C13: 53 | D13: 25 | E13: NCNTY53025N53025 | F13: Grant County, WA | G13: Grant County | H13: 32150
A14: WA | B14: 5302799999 | C14: 53 | D14: 27 | E14: NCNTY53027N53027 | F14: Grays Harbor County, WA | G14: Grays Harbor County | H14: 32150
A15: WA | B15: 5302999999 | C15: 53 | D15: 29 | E15: NCNTY53029N53029 | F15: Island County, WA | G15: Island County | H15: 36950
A16: WA | B16: 5303199999 | C16: 53 | D16: 31 | E16: NCNTY53031N53031 | F16: Jefferson County, WA | G16: Jefferson County | H16: 34650
A17: WA | B17: 5303399999 | C17: 53 | D17: 33 | E17: METRO42660MM7600 | F17: Seattle-Bellevue, WA HUD Metro FMR Area | G17: King County | H17: 55350
A18: WA | B18: 5303599999 | C18: 53 | D18: 35 | E18: METRO14740M14740 | F18: Bremerton-Silverdale, WA MSA | G18: Kitsap County | H18: 42750
A19: WA | B19: 5303799999 | C19: 53 | D19: 37 | E19: NCNTY53037N53037 | F19: Kittitas County, WA | G19: Kittitas County | H19: 36150
A20: WA | B20: 5303999999 | C20: 53 | D20: 39 | E20: NCNTY53039N53039 | F20: Klickitat County, WA | G20: Klickitat County | H20: 32150
A21: WA | B21: 5304199999 | C21: 53 | D21: 41 | E21: NCNTY53041N53041 | F21: Lewis County, WA | G21: Lewis County | H21: 32150
A22: WA | B22: 5304399999 | C22: 53 | D22: 43 | E22: NCNTY53043N53043 | F22: Lincoln County, WA | G22: Lincoln County | H22: 32150
A23: WA | B23: 5304599999 | C23: 53 | D23: 45 | E23: NCNTY53045N53045 | F23: Mason County, WA | G23: Mason County | H23: 32250
A24: WA | B24: 5304799999 | C24: 53 | D24: 47 | E24: NCNTY53047N53047 | F24: Okanogan County, WA | G24: Okanogan County | H24: 32150
A25: WA | B25: 5304999999 | C25: 53 | D25: 49 | E25: NCNTY53049N53049 | F25: Pacific County, WA | G25: Pacific County | H25: 32150
A26: WA | B26: 5305199999 | C26: 53 | D26: 51 | E26: METRO44060N53051 | F26: Pend Oreille County, WA HUD Metro FMR Area | G26: Pend Oreille County | H26: 32150
A27: WA | B27: 5305399999 | C27: 53 | D27: 53 | E27: METRO42660MM8200 | F27: Tacoma, WA HUD Metro FMR Area | G27: Pierce County | H27: 40100
A28: WA | B28: 5305599999 | C28: 53 | D28: 55 | E28: NCNTY53055N53055 | F28: San Juan County, WA | G28: San Juan County | H28: 38450
A29: WA | B29: 5305799999 | C29: 53 | D29: 57 | E29: METRO34580M34580 | F29: Mount Vernon-Anacortes, WA MSA | G29: Skagit County | H29: 38000
A30: WA | B30: 5305999999 | C30: 53 | D30: 59 | E30: METRO38900M38900 | F30: Portland-Vancouver-Hillsboro, OR-WA MSA | G30: Skamania County | H30: 43950
A31: WA | B31: 5306199999 | C31: 53 | D31: 61 | E31: METRO42660MM7600 | F31: Seattle-Bellevue, WA HUD Metro FMR Area | G31: Snohomish County | H31: 55350
A32: WA | B32: 5306399999 | C32: 53 | D32: 63 | E32: METRO44060M44060 | F32: Spokane, WA HUD Metro FMR Area | G32: Spokane County | H32: 35850
A33: WA | B33: 5306599999 | C33: 53 | D33: 65 | E33: METRO44060N53065 | F33: Stevens County, WA HUD Metro FMR Area | G33: Stevens County | H33: 32150
A34: WA | B34: 5306799999 | C34: 53 | D34: 67 | E34: METRO36500M36500 | F34: Olympia-Tumwater, WA MSA | G34: Thurston County | H34: 41850
A35: WA | B35: 5306999999 | C35: 53 | D35: 69 | E35: NCNTY53069N53069 | F35: Wahkiakum County, WA | G35: Wahkiakum County | H35: 32150
A36: WA | B36: 5307199999 | C36: 53 | D36: 71 | E36: METRO47460N53071 | F36: Walla Walla County, WA HUD Metro FMR Area | G36: Walla Walla County | H36: 33550
A37: WA | B37: 5307399999 | C37: 53 | D37: 73 | E37: METRO13380M13380 | F37: Bellingham, WA MSA | G37: Whatcom County | H37: 39550
A38: WA | B38: 5307599999 | C38: 53 | D38: 75 | E38: NCNTY53075N53075 | F38: Whitman County, WA | G38: Whitman County | H38: 35800
A39: WA | B39: 5307799999 | C39: 53 | D39: 77 | E39: METRO49420M49420 | F39: Yakima, WA MSA | G39: Yakima County | H39: 32150
